fUST/lending_fUST_20251116
["ID","MTS","AMOUNT","RATE_DAILY","PERIOD"]
[394062864,1763239841519,-1177.6434062,0.00021154,2]
[394062866,1763239841529,-1521.31739526,0.00021189,2]
[394062868,1763239841537,-151.0,0.000212,3]
[394062870,1763239841547,-934.0,0.00021231,2]
[394062872,1763239841556,-802.0,0.00021231,2]
[394062874,1763239841566,-1156.0,0.00021232,2]
[394062876,1763239841576,-5495.48,0.00021358,3]
[394062878,1763239841586,-2747.74,0.00021358,3]
[394062880,1763239841596,-1373.88,0.00021358,3]
[394062882,1763239841606,-1373.88,0.00021358,3]
[394062884,1763239841615,-934.0,0.00021368,2]
[394062886,1763239841625,-802.0,0.00021368,2]
[394062888,1763239841634,-500.0,0.00021368,2]
[394062890,1763239841644,-1156.0,0.00021369,2]
[394062892,1763239841653,-600.0,0.0002139,20]
[394062894,1763239841667,-503.37464979,0.00021421,2]
[394062896,1763239841676,-1001.64416043,0.00021421,2]
[394062898,1763239841686,-934.0,0.00021505,2]
[394062900,1763239841695,-802.0,0.00021505,2]
[394062902,1763239841705,-1156.0,0.00021506,2]
[394062904,1763239841714,-594.77442815,0.00021507,2]
[394062906,1763239841723,-1091.73676598,0.00021521,2]
[394062908,1763239841732,-514.81752038,0.00021521,2]
[394062910,1763239841742,-1000.0,0.00021521,2]
[394062912,1763239841751,-1005.57274467,0.00021521,2]
[394062914,1763239841760,-507.25479919,0.00021521,2]
[394062916,1763239841769,-1000.0,0.00021521,2]
[394062918,1763239841778,-1000.0,0.00021521,2]
[394062920,1763239841787,-409.71236041,0.00021521,2]
[394062922,1763239841796,-1000.0,0.00021521,2]
[394062924,1763239841806,-1000.0,0.00021521,2]
[394062926,1763239841815,-1001.83390598,0.00021521,2]
[394062928,1763239841824,-1005.38349467,0.00021521,2]
[394062930,1763239841833,-1000.0,0.00021521,2]
[394062932,1763239841843,-1000.0,0.00021521,2]
[394062934,1763239841852,-1000.0,0.00021521,2]
[394062936,1763239841861,-1000.0,0.00021521,2]
[394062938,1763239841870,-1002.96448252,0.00021521,2]
[394062940,1763239841880,-1000.0,0.00021521,2]
[394062942,1763239841889,-500.79728517,0.00021521,2]
[394062944,1763239841898,-1014.53990102,0.00021521,2]
[394062946,1763239841908,-505.04183023,0.00021521,2]
[394062948,1763239841919,-1000.0,0.00021521,2]
[394062950,1763239841928,-1000.0,0.00021521,2]
[394062952,1763239841938,-502.14062101,0.00021521,2]
[394062954,1763239841948,-1000.0,0.00021521,2]
[394062956,1763239841958,-1000.0,0.00021521,2]
[394062958,1763239841967,-398.4623948,0.00021521,2]
[394062960,1763239841976,-288.3655581,0.00021521,2]
[394062969,1763239841986,-1000.0,0.00021521,2]
[394062971,1763239842059,-1000.0,0.00021521,2]
[394062973,1763239842070,-508.79392546,0.00021521,2]
[394062975,1763239842080,-426.07856633,0.00021521,2]
[394062977,1763239842090,-1000.0,0.00021521,2]
[394062979,1763239842101,-1000.0,0.00021521,2]
[394062980,1763239842110,-1000.0,0.00021521,2]
[394062983,1763239842119,-1000.0,0.00021521,2]
[394062984,1763239842128,-1000.0,0.00021521,2]
[394062987,1763239842138,-488.71895993,0.00021521,2]
[394062989,1763239842147,-1000.0,0.00021521,2]
[394062991,1763239842156,-1000.0,0.00021521,2]
[394062992,1763239842167,-500.0,0.00021573,2]
[394062994,1763239842177,-509.93100257,0.00021573,2]
[394062996,1763239842186,-500.0,0.00021573,2]
[394062999,1763239842196,-500.0,0.00021573,2]
[394063000,1763239842206,-500.0,0.00021573,2]
[394063003,1763239842215,-225.18697532,0.0002163,2]
[394063005,1763239842224,-934.0,0.00021642,2]
[394063006,1763239842234,-802.0,0.00021642,2]
[394063008,1763239842243,-462.90605611,0.00021642,2]
[394063010,1763239842253,-1156.0,0.00021643,2]
[394063012,1763239842262,-891.93815708,0.00021704,2]
[394063014,1763239842271,-934.0,0.00021779,2]
[394063016,1763239842280,-802.0,0.00021779,2]
[394063018,1763239842289,-1156.0,0.0002178,2]
[394063020,1763239842298,-247.05784457,0.00021788,2]
[394063022,1763239842308,-582.39247004,0.00021788,2]
[394063024,1763239842317,-151.0,0.000218,3]
[394063026,1763239842326,-1680.0,0.00021878,2]
[394063028,1763239842336,-934.0,0.00021916,2]
[394063030,1763239842346,-802.0,0.00021916,2]
[394063033,1763239842355,-1156.0,0.00021917,2]
[394063035,1763239842364,-151.0,0.00021918,2]
[394063037,1763239842373,-151.0,0.00021918,2]
[394063039,1763239842383,-151.0,0.00021918,2]
[394063041,1763239842392,-151.0,0.00021918,2]
[394063043,1763239842401,-151.0,0.00021918,2]
[394063044,1763239842411,-151.0,0.00021918,2]
[394063047,1763239842420,-151.0,0.00021918,2]
[394063049,1763239842430,-151.0,0.00021918,2]
[394063051,1763239842440,-151.0,0.00021918,2]
[394063053,1763239842449,-151.0,0.00021918,2]
[394063055,1763239842459,-151.0,0.00021918,2]
[394063057,1763239842469,-151.0,0.00021918,2]
[394063058,1763239842478,-151.0,0.00021918,2]
[394063060,1763239842488,-151.0,0.00021918,2]
[394063063,1763239842497,-151.0,0.00021918,2]
[394063065,1763239842506,-151.0,0.00021918,2]
[394063066,1763239842515,-217.829724,0.00021918,7]
[394063068,1763239842524,-217.829724,0.00021918,7]
[394063071,1763239842534,-217.829724,0.00021918,7]
[394063073,1763239842543,-217.829724,0.00021918,7]
[394063075,1763239842552,-217.829724,0.00021918,7]
[394063077,1763239842562,-217.829724,0.00021918,7]
[394063078,1763239842571,-217.829724,0.00021918,7]
[394063080,1763239842581,-217.829724,0.00021918,7]
[394063083,1763239842590,-217.829724,0.00021918,7]
[394063084,1763239842600,-217.829724,0.00021918,7]
[394063087,1763239842610,-217.829724,0.00021918,7]
[394063089,1763239842619,-217.829724,0.00021918,7]
[394063091,1763239842628,-217.829724,0.00021918,7]
[394063092,1763239842638,-217.829724,0.00021918,7]
[394063094,1763239842647,-217.829724,0.00021918,7]
[394063096,1763239842656,-217.829724,0.00021918,7]
[394063098,1763239842668,-217.829724,0.00021918,7]
[394063100,1763239842677,-217.829724,0.00021918,7]
[394063102,1763239842687,-217.829724,0.00021918,7]
[394063104,1763239842696,-217.829734,0.00021918,7]
[394063106,1763239842705,-399.49281763,0.00021918,2]
[394063108,1763239842714,-160.0,0.00021936,2]
[394063110,1763239842723,-177.0,0.00021997,2]
[394063112,1763239842732,-16718.86248937,0.00022,5]
[394063114,1763239842742,-514.08,0.00022,14]
[394063116,1763239842751,-934.0,0.00022053,2]
[394063118,1763239842760,-802.0,0.00022053,2]
[394063120,1763239842769,-1156.0,0.00022054,2]
[394063122,1763239842779,-427.15293082,0.00022068,2]
[394063124,1763239842788,-514.84617284,0.00022068,2]
[394063126,1763239842797,-152.35868626,0.00022068,2]
[394063128,1763239842807,-871.87267346,0.00022068,2]
[394063130,1763239842816,-1500.0,0.00022068,2]
[394063132,1763239842826,-1500.0,0.00022068,2]
[394063134,1763239842835,-214.49794381,0.00022068,2]
[394063136,1763239842845,-399.14002068,0.00022068,2]
[394063138,1763239842854,-1500.0,0.00022068,2]
[394063140,1763239842864,-1500.0,0.00022068,2]
[394063142,1763239842874,-508.21788241,0.00022068,2]
[394063144,1763239842885,-1028.87099454,0.00022068,2]
[394063146,1763239842894,-1500.0,0.00022068,2]
[394063148,1763239842903,-1500.0,0.00022068,2]
[394063150,1763239842912,-1500.0,0.00022068,2]
[394063152,1763239842921,-614.9217838,0.00022068,2]
[394063154,1763239842930,-1500.0,0.00022068,2]
[394063156,1763239842939,-591.85763767,0.00022068,2]
[394063158,1763239842949,-1500.0,0.00022068,2]
[394063160,1763239842958,-1500.0,0.00022068,2]
[394063162,1763239842967,-1500.0,0.00022068,2]
[394063164,1763239842975,-1500.0,0.00022068,2]
[394063166,1763239842986,-500.0,0.00022073,2]
[394063168,1763239842995,-500.0,0.00022073,2]
[394063170,1763239843004,-198.9325764,0.00022073,2]
[394063172,1763239843014,-500.0,0.00022073,2]
[394063174,1763239843023,-500.0,0.00022073,2]
[394063176,1763239843032,-239.85901054,0.00022073,2]
[394063178,1763239843040,-500.0,0.00022073,2]
[394063180,1763239843049,-500.0,0.00022073,2]
[394063182,1763239843058,-500.0,0.00022073,2]
[394063184,1763239843067,-500.0,0.00022073,2]
[394063186,1763239843077,-222.46671014,0.00022073,2]
[394063188,1763239843089,-500.0,0.00022073,2]
[394063190,1763239843098,-275.13327133,0.00022073,2]
[394063198,1763239843166,-500.0,0.00022073,2]
[394063200,1763239843176,-500.0,0.00022073,2]
[394063202,1763239843185,-500.0,0.00022073,2]
[394063204,1763239843194,-500.0,0.00022073,2]
[394063206,1763239843203,-500.0,0.00022073,2]
[394063208,1763239843212,-502.2374268,0.00022073,2]
[394063210,1763239843221,-500.0,0.00022073,2]
[394063212,1763239843230,-500.61430866,0.00022073,2]
[394063214,1763239843239,-504.36325668,0.00022073,2]
[394063216,1763239843247,-503.10126858,0.00022073,2]
[394063217,1763239843256,-500.0,0.00022073,2]
[394063218,1763239843265,-501.1299011,0.00022073,2]
[394063219,1763239843273,-500.0,0.00022073,2]
[394063220,1763239843282,-501.03513554,0.00022073,2]
[394063221,1763239843291,-500.0,0.00022073,2]
[394063222,1763239843299,-500.0,0.00022073,2]
[394063223,1763239843308,-500.0,0.00022073,2]
[394063224,1763239843316,-500.0,0.00022073,2]
[394063225,1763239843325,-218.90520436,0.00022073,2]
[394063226,1763239843334,-500.94920212,0.00022073,2]
[394063227,1763239843343,-500.0,0.00022073,2]
[394063228,1763239843352,-500.0,0.00022073,2]
[394063229,1763239843362,-500.0,0.00022073,2]
[394063230,1763239843370,-500.0,0.00022073,2]
[394063231,1763239843379,-305.85602091,0.00022073,2]
[394063232,1763239843388,-506.74115742,0.00022073,2]
[394063234,1763239843397,-500.0,0.00022073,2]
[394063235,1763239843406,-500.0,0.00022073,2]
[394063237,1763239843415,-500.71053897,0.00022073,2]
[394063239,1763239843424,-503.66722272,0.00022073,2]
[394063241,1763239843433,-500.0,0.00022073,2]
[394063243,1763239843443,-501.41442112,0.00022073,2]
[394063245,1763239843451,-500.0,0.00022073,2]
[394063247,1763239843460,-500.0,0.00022073,2]
[394063249,1763239843469,-522.104074,0.00022073,2]
[394063251,1763239843478,-520.87110955,0.00022073,2]
[394063253,1763239843487,-633.16474288,0.00022073,2]
[394063254,1763239843496,-503.84547126,0.00022073,2]
[394063257,1763239843505,-500.0,0.00022073,2]
[394063258,1763239843515,-500.0,0.00022073,2]
[394063260,1763239843524,-506.76459582,0.00022073,2]
[394063262,1763239843534,-500.0,0.00022073,2]
[394063264,1763239843543,-500.0,0.00022073,2]
[394063266,1763239843552,-187.49925704,0.00022077,2]
[394063269,1763239843562,-749.99702815,0.00022077,2]
[394063270,1763239843571,-1687.49331334,0.00022077,2]
[394063272,1763239843581,-686.76273344,0.00022077,2]
[394063274,1763239843590,-1545.21615025,0.00022077,2]
[394063276,1763239843600,-2747.05093377,0.00022077,2]
[394063279,1763239843609,-4287.97481694,0.00022077,2]
[394063281,1763239843619,-151.0,0.000221,8]
[394063283,1763239843628,-151.0,0.000221,5]
[394063285,1763239843637,-1000.0,0.00022121,2]
[394063286,1763239843646,-268.14585046,0.00022121,2]
[394063288,1763239843655,-507.1083366,0.00022121,2]
[394063291,1763239843665,-1000.0,0.00022121,2]
[394063292,1763239843674,-233.51889341,0.00022178,2]
[394063295,1763239843683,-934.0,0.0002219,2]
[394063297,1763239843693,-802.0,0.0002219,2]
[394063298,1763239843702,-1156.0,0.00022191,2]
[394063301,1763239843711,-286.819185,0.00022245,2]
[394063302,1763239843721,-388.110021,0.00022245,2]
[394063305,1763239843730,-1214.9577181,0.00022245,2]
[394063306,1763239843740,-257.7109323,0.00022245,2]
[394063309,1763239843750,-282.4977665,0.00022309,2]
[394063311,1763239843759,-934.0,0.00022327,2]
[394063313,1763239843769,-802.0,0.00022327,2]
[394063315,1763239843778,-1156.0,0.00022328,2]
[394063317,1763239843787,-3345.72905882,0.0002235,2]
[394063318,1763239843796,-688.96295651,0.00022461,2]
[394063320,1763239843805,-934.0,0.00022464,2]
[394063322,1763239843815,-802.0,0.00022464,2]
[394063324,1763239843824,-1156.0,0.00022465,2]
[394063326,1763239843833,-260.0,0.00022484,2]
[394063328,1763239843843,-602.77216134,0.000225,2]
[394063330,1763239843852,-151.0,0.000225,6]
[394063333,1763239843862,-500.56604722,0.00022587,2]
[394063335,1763239843872,-934.0,0.00022601,2]
[394063336,1763239843882,-802.0,0.00022601,2]
[394063339,1763239843891,-1156.0,0.00022602,2]
[394063340,1763239843901,-1568.77859409,0.00022616,2]
[394063342,1763239843911,-2000.0,0.00022616,2]
[394063344,1763239843921,-2000.0,0.00022616,2]
[394063346,1763239843930,-883.24694344,0.00022616,2]
[394063348,1763239843939,-2000.0,0.00022616,2]
[394063351,1763239843949,-2004.43111576,0.00022616,2]
[394063352,1763239843959,-1147.22031248,0.00022616,2]
[394063354,1763239843970,-500.0,0.00022616,2]
[394063358,1763239843980,-524.86410953,0.00022616,2]
[394063360,1763239843990,-1244.83487821,0.00022616,2]
[394063363,1763239844000,-2000.0,0.00022616,2]
[394063366,1763239844009,-2000.0,0.00022616,2]
[394063368,1763239844018,-1000.0,0.00022621,2]
[394063370,1763239844028,-508.56824134,0.00022621,2]
[394063373,1763239844037,-501.86696439,0.00022621,2]
[394063375,1763239844046,-501.67009495,0.00022621,2]
[394063377,1763239844055,-585.78095502,0.00022621,2]
[394063379,1763239844064,-1000.0,0.00022621,2]
[394063381,1763239844074,-513.21510117,0.00022621,2]
[394063382,1763239844084,-1000.0,0.00022621,2]
[394063384,1763239844095,-1000.0,0.00022621,2]
[394063387,1763239844105,-1003.97584305,0.00022621,2]
[394063388,1763239844114,-1038.08386182,0.00022621,2]
[394063396,1763239844179,-1000.0,0.00022621,2]
[394063398,1763239844188,-500.0,0.00022621,2]
[394063400,1763239844198,-1000.0,0.00022621,2]
[394063402,1763239844207,-1000.0,0.00022621,2]
[394063404,1763239844216,-503.04312465,0.00022621,2]
[394063406,1763239844226,-1006.52112238,0.00022621,2]
[394063408,1763239844235,-1009.16903761,0.00022621,2]
[394063410,1763239844245,-1000.0,0.00022621,2]
[394063412,1763239844254,-1000.0,0.00022621,2]
[394063414,1763239844263,-1000.0,0.00022621,2]
[394063416,1763239844273,-1011.37023418,0.00022621,2]
[394063418,1763239844283,-1000.0,0.00022621,2]
[394063421,1763239844293,-1009.33725645,0.00022621,2]
[394063423,1763239844304,-1000.0,0.00022621,2]
[394063424,1763239844314,-1000.0,0.00022621,2]
[394063427,1763239844323,-1000.0,0.00022621,2]
[394063430,1763239844333,-481.69996397,0.00022621,2]
[394063431,1763239844342,-236.57194987,0.00022668,2]
[394063434,1763239844352,-301.88257163,0.00022668,2]
[394063437,1763239844362,-242.15909246,0.00022726,2]
[394063439,1763239844371,-934.0,0.00022738,2]
[394063442,1763239844381,-802.0,0.00022738,2]
[394063445,1763239844390,-1156.0,0.00022739,2]
[394063448,1763239844400,-1070.59397067,0.00022821,2]
[394063451,1763239844409,-934.0,0.00022875,2]
[394063453,1763239844419,-802.0,0.00022875,2]
[394063456,1763239844429,-1156.0,0.00022876,2]
[394063458,1763239844438,-567.77799707,0.00022935,2]
[394063461,1763239844447,-2271.11198829,0.00022935,2]
[394063463,1763239844458,-5110.00197365,0.00022935,2]
[394063466,1763239844467,-4859.32170902,0.00022998,2]
[394063469,1763239844477,-1073.87709594,0.00022998,2]
[394063472,1763239844486,-500.0,0.00023,2]
[394063474,1763239844496,-500.0,0.00023,2]
[394063477,1763239844505,-261.1,0.00023,7]
[394063480,1763239844515,-7699.24,0.00023,7]
[394063482,1763239844524,-151.0,0.00023,7]
[394063485,1763239844534,-934.0,0.00023012,2]
[394063488,1763239844544,-802.0,0.00023012,2]
[394063489,1763239844553,-1156.0,0.00023013,2]
[394063490,1763239844562,-360.0,0.00023032,2]
[394063491,1763239844571,-661.25677164,0.00023107,2]
[394063492,1763239844580,-250.0,0.00023107,2]
[394063493,1763239844589,-250.0,0.00023107,2]
[394063494,1763239844598,-250.0,0.00023107,2]
[394063495,1763239844607,-250.0,0.00023107,2]
[394063496,1763239844616,-250.0,0.00023107,2]
[394063497,1763239844626,-250.0,0.00023107,2]
[394063498,1763239844635,-250.0,0.00023107,2]
[394063499,1763239844645,-278.15681144,0.00023107,2]
[394063500,1763239844654,-250.0,0.00023107,2]
[394063501,1763239844664,-250.0,0.00023107,2]
[394063502,1763239844673,-250.0,0.00023107,2]
[394063503,1763239844682,-250.0,0.00023107,2]
[394063504,1763239844692,-250.0,0.00023107,2]
[394063505,1763239844701,-1000.0,0.00023107,2]
[394063506,1763239844710,-250.0,0.00023107,2]
[394063507,1763239844719,-1000.0,0.00023107,2]
[394063508,1763239844728,-250.0,0.00023107,2]
[394063509,1763239844737,-1000.0,0.00023107,2]
[394063510,1763239844746,-250.0,0.00023107,2]
[394063511,1763239844755,-1000.0,0.00023107,2]
[394063512,1763239844763,-250.0,0.00023107,2]
[394063513,1763239844773,-1000.0,0.00023107,2]
[394063514,1763239844782,-250.0,0.00023107,2]
[394063515,1763239844791,-1000.0,0.00023107,2]
[394063517,1763239844800,-250.0,0.00023107,2]
[394063518,1763239844810,-1000.0,0.00023107,2]
[394063520,1763239844819,-250.0,0.00023107,2]
[394063522,1763239844829,-1000.0,0.00023107,2]
[394063524,1763239844838,-1000.0,0.00023107,2]
[394063526,1763239844848,-1000.0,0.00023107,2]
[394063528,1763239844858,-1000.0,0.00023107,2]
[394063530,1763239844867,-1000.0,0.00023107,2]
[394063532,1763239844876,-1000.0,0.00023107,2]
[394063534,1763239844885,-1000.0,0.00023107,2]
[394063536,1763239844895,-1000.0,0.00023107,2]
[394063538,1763239844904,-1000.0,0.00023107,2]
[394063540,1763239844914,-1000.0,0.00023107,2]
[394063542,1763239844923,-1000.0,0.00023107,2]
[394063544,1763239844933,-1000.0,0.00023107,2]
[394063546,1763239844942,-1000.0,0.00023107,2]
[394063548,1763239844952,-934.55418288,0.00023149,2]
[394063550,1763239844962,-814.3746354,0.00023149,2]
[394063552,1763239844971,-1178.44731581,0.0002315,2]
[394063554,1763239844980,-2500.0,0.00023164,2]
[394063556,1763239844989,-786.09776513,0.00023164,2]
[394063558,1763239844999,-2500.0,0.00023164,2]
[394063560,1763239845010,-2500.0,0.00023164,2]
[394063563,1763239845020,-2500.0,0.00023164,2]
[394063564,1763239845029,-504.68130408,0.00023168,2]
[394063567,1763239845039,-515.17008264,0.00023168,2]
[394063569,1763239845049,-1509.55592898,0.00023168,2]
[394063570,1763239845058,-1500.0,0.00023168,2]
[394063572,1763239845068,-1502.73538519,0.00023168,2]
[394063580,1763239845133,-1500.0,0.00023168,2]
[394063582,1763239845143,-649.08160498,0.00023168,2]
[394063584,1763239845152,-1500.0,0.00023168,2]
[394063586,1763239845163,-1517.13190715,0.00023168,2]
[394063588,1763239845173,-633.13153348,0.00023168,2]
[394063590,1763239845182,-712.03063547,0.00023168,2]
[394063592,1763239845192,-1500.0,0.00023168,2]
[394063594,1763239845201,-1509.69811268,0.00023168,2]
[394063596,1763239845211,-151.0,0.000232,9]
[394063598,1763239845221,-150.0,0.00023273,2]
[394063600,1763239845231,-251.11897888,0.00023274,2]
[394063602,1763239845240,-160.0,0.00023359,2]
[394063604,1763239845250,-1000.0,0.00023411,2]
[394063606,1763239845259,-678.83527967,0.00023433,2]
[394063608,1763239845268,-151.0,0.000235,6]
[394063610,1763239845278,-151.0,0.000235,6]
[394063612,1763239845288,-180.36782811,0.00023512,2]
[394063614,1763239845297,-720.0,0.00023529,20]
[394063616,1763239845307,-1000.0,0.00023548,2]
[394063618,1763239845316,-3345.72905882,0.00023575,2]
[394063620,1763239845325,-460.0,0.0002358,2]
[394063622,1763239845335,-3069.64531605,0.00023698,2]
[394063624,1763239845344,-1000.0,0.00023712,2]
[394063626,1763239845354,-3000.0,0.00023712,2]
[394063628,1763239845363,-980.18657332,0.00023712,2]
[394063630,1763239845373,-1838.25565597,0.00023712,2]
[394063632,1763239845382,-2000.0,0.00023716,2]
[394063634,1763239845391,-2000.0,0.00023716,2]
[394063636,1763239845400,-3.01757502,0.00023716,2]
[394064263,1763240112066,160.0,0.0002366,120]
[394064264,1763240113311,160.0,0.00024843,120]
[394064265,1763240114917,160.0,0.00026085,120]
[394064266,1763240116328,160.0,0.0002739,120]
[394064268,1763240292838,234.53,0.0001,7]
[394064269,1763240294133,228.44,0.0001,20]
[394064270,1763240300938,2745.86911944,0.00021,10]
[394064271,1763240316071,5000.0,0.00021,10]
[394064272,1763240335411,298.0,0.0001862,3]
[394064275,1763240529743,5000.0,0.00019996,2]
[394064276,1763240552090,5000.0,0.00019996,2]
[394064277,1763240571534,756.97,0.00020899,10]
[394064279,1763240574636,5000.0,0.00019996,2]
[394064280,1763240583589,782.2,0.00020898,10]
[394064281,1763240594991,651.83,0.00020898,10]
[394064282,1763240596808,5000.0,0.00019996,2]
[394064283,1763240606774,543.19,0.00020898,10]
[394064284,1763240613396,623.786687,0.00019651,2]
[394064285,1763240619282,452.66,0.00020898,10]
[394064286,1763240619591,5000.0,0.00019996,2]
[394064287,1763240630717,377.22,0.00020898,10]
[394064288,1763240641855,5000.0,0.00019996,2]
[394064289,1763240642141,314.35,0.00020898,10]
[394064290,1763240652506,261.96,0.00020898,10]
[394064291,1763240664043,2197.35751333,0.00019996,2]
[394064292,1763240664249,218.3,0.00020898,10]
[394064293,1763240675745,181.91,0.00020898,10]
[394064294,1763240687626,151.59,0.00020898,10]
[394064295,1763240699584,758.0,0.00020897,10]
[394064296,1763240753561,888.75177269,0.00019664,2]
[394064297,1763240756429,3555.00709076,0.00019664,2]
[394064298,1763240839488,1264.423747,0.00030137,120]
[394064299,1763240855838,620.75466751,0.00019565,2]
[394064300,1763240944970,150.0,0.00032876,120]
[394064337,1763241032299,-4039.92833675,0.0002,2]
[394064344,1763241032352,-1022.07166325,0.0002,2]
[394064346,1763241032362,-150.0,0.00020075,2]
[394064348,1763241032371,-1200.0,0.00020398,2]
[394064350,1763241032381,-300.0,0.00020399,2]
[394064352,1763241032390,-300.0,0.00020399,2]
[394064354,1763241032399,-300.0,0.00020399,2]
[394064356,1763241032408,-300.0,0.00020399,2]
[394064358,1763241032417,-188.77376765,0.000204,2]
[394064360,1763241032427,-1200.0,0.000204,2]
[394064362,1763241032440,-188.77376764,0.000204,2]
[394064364,1763241032452,-188.77376764,0.000204,2]
[394064366,1763241032461,-2766.76959618,0.00020401,2]
[394064368,1763241032470,-1271.17611287,0.00020501,2]
[394064370,1763241032479,-500.0,0.00020573,2]
[394064372,1763241032489,-500.0,0.00020573,2]
[394064374,1763241032498,-433.80988382,0.00020573,2]
[394064376,1763241032507,-500.0,0.00020573,2]
[394064378,1763241032518,-500.0,0.00020573,2]
[394064380,1763241032528,-500.0,0.00020573,2]
[394064382,1763241032537,-500.0,0.00020573,2]
[394064384,1763241032546,-500.0,0.00020593,2]
[394064386,1763241032555,-500.0,0.00020593,2]
[394064388,1763241032564,-500.0,0.00020593,2]
[394064390,1763241032573,-500.0,0.00020593,2]
[394064392,1763241032582,-1289.64461028,0.00020593,2]
[394064404,1763241032676,-500.0,0.00020593,2]
[394064407,1763241032690,-500.0,0.00020593,2]
[394064408,1763241032701,-500.0,0.00020593,2]
[394064410,1763241032710,-500.0,0.00020593,2]
[394064412,1763241032719,-500.0,0.00020593,2]
[394064414,1763241032728,-1289.64461028,0.00020593,2]
[394064416,1763241032737,-500.0,0.00020593,2]
[394064418,1763241032746,-500.0,0.00020593,2]
[394064420,1763241032755,-500.0,0.00020593,2]
[394064422,1763241032764,-500.0,0.00020593,2]
[394064424,1763241032773,-500.0,0.00020593,2]
[394064426,1763241032782,-1289.64461028,0.00020593,2]
[394064428,1763241032791,-500.0,0.00020593,2]
[394064430,1763241032799,-500.0,0.00020593,2]
[394064432,1763241032808,-500.0,0.00020593,2]
[394064434,1763241032818,-500.0,0.00020593,2]
[394064436,1763241032827,-1289.64461028,0.00020593,2]
[394064438,1763241032836,-500.0,0.00020593,2]
[394064440,1763241032845,-500.0,0.00020593,2]
[394064442,1763241032855,-500.0,0.00020593,2]
[394064444,1763241032864,-500.0,0.00020593,2]
[394064446,1763241032873,-500.0,0.00020593,2]
[394064448,1763241032882,-1289.64461028,0.00020593,2]
[394064450,1763241032891,-500.0,0.00020593,2]
[394064452,1763241032900,-500.0,0.00020593,2]
[394064454,1763241032909,-500.0,0.00020593,2]
[394064456,1763241032917,-500.0,0.00020593,2]
[394064458,1763241032927,-500.0,0.00020593,2]
[394064460,1763241032936,-1289.64461028,0.00020593,2]
[394064462,1763241032946,-500.0,0.00020593,2]
[394064464,1763241032955,-500.0,0.00020593,2]
[394064466,1763241032963,-500.0,0.00020593,2]
[394064468,1763241032972,-1289.64461028,0.00020593,2]
[394064470,1763241032982,-347.54256011,0.00020593,2]
[394064472,1763241032992,-500.0,0.00020593,2]
[394064474,1763241033001,-500.0,0.00020593,2]
[394064476,1763241033010,-500.0,0.00020593,2]
[394064478,1763241033020,-1289.64461028,0.00020593,2]
[394064479,1763241033029,-500.0,0.00020593,2]
[394064480,1763241033038,-500.0,0.00020593,2]
[394064481,1763241033047,-500.0,0.00020593,2]
[394064482,1763241033056,-1289.64461028,0.00020593,2]
[394064483,1763241033065,-500.0,0.00020593,2]
[394064484,1763241033074,-500.0,0.00020593,2]
[394064485,1763241033084,-500.0,0.00020593,2]
[394064486,1763241033093,-500.0,0.00020593,2]
[394064487,1763241033102,-500.0,0.00020593,2]
[394064488,1763241033111,-1289.64461028,0.00020593,2]
[394064489,1763241033120,-500.0,0.00020593,2]
[394064490,1763241033129,-500.0,0.00020593,2]
[394064491,1763241033138,-500.0,0.00020593,2]
[394064492,1763241033147,-1289.64461028,0.00020593,2]